Cogmind - Beta 13 X1 @@@ ROGUE MODE // 2023.11.06 @ 18:53:48 Player: Plexion Result: Destroyed by NJ-HK5(R) with Subdweller Machine Gun Performance ------------- Evolutions (0) 0 Regions Visited (3) 600 Robots Destroyed (22) 110 Value Destroyed (615) 615 Prototype IDs (0) 0 Alien Tech Used (0) 0 Bonus (60) 60 TOTAL SCORE: 1385 Bonus ------- Follower Combat Kills 60 Cogmind --------- Core Integrity 0/250 Matter 235/300 Energy 100/100 System Corruption 0% Temperature Cool (0) Movement Treading (320) Ox2 Location -10/Subcaves Parts ------- > --- POWER (1) -------- (None) > --- PROPULSION (2) --- Light Treads > --- UTILITY (2) ------ High-capacity Storage Unit > --- WEAPON (2) ------- Assault Rifle Heavy Assault Rifle > --- INVENTORY (20) --- Ion Engine Improved Heat Sink Targeting Computer Light Armor Plating EM Pulse Gun EM Pulse Gun Beamcaster Assault Rifle Light Assault Rifle Subdweller Machine Gun Rocket Launcher Subdweller Shrapnel Launcher Mining Laser Multitool Hammer Ripper Makeshift Axe Peak State ------------ > --- POWER ------------ Light Ion Engine > --- PROPULSION ------- Light Treads Light Treads > --- UTILITY ---------- High-capacity Storage Unit Core Shielding > --- WEAPON ----------- Heavy Assault Rifle Makeshift Axe > --- INVENTORY -------- Ion Engine Light Treads Improved Heat Sink Targeting Computer Light Armor Plating EM Pulse Gun EM Pulse Gun Beamcaster Assault Rifle Assault Rifle Assault Rifle Light Assault Rifle Heavy Assault Rifle Rocket Launcher Subdweller Shrapnel Launcher Mining Laser Hammer Ripper [Rating: 14] Favorites ----------- Power Light Ion Engine Engine Light Ion Engine Propulsion Light Treads Treads Light Treads Utility High-capacity Storage Unit Device Improved Heat Sink Storage High-capacity Storage Unit Protection Core Shielding Weapon Heavy Assault Rifle Ballistic Gun Heavy Assault Rifle Launcher Rocket Launcher Impact Weapon Hammer Slashing Weapon Makeshift Axe Build | -11 -10 -10 -10 ------- Run | Jun Mat Min Sub Slots Evolved . | . . . . Power . | . . . . Propulsion . | . . . . Utility . | . . . . Weapon . | . . . . Parts Attached 27 | 6 3 4 14 Power 1 | 1 . . . Engine 1 | 1 . . . Core . | . . . . Reactor . | . . . . Propulsion 4 | 2 . 1 1 Treads 4 | 2 . 1 1 Leg . | . . . . Wheel . | . . . . Hover . | . . . . Flight . | . . . . Utility 5 | 1 3 1 . Device 1 | . 1 . . Storage 3 | 1 2 . . Processor . | . . . . Hackware . | . . . . Protection 1 | . . 1 . Artifact . | . . . . Weapon 17 | 2 . 2 13 Energy Gun . | . . . . Energy Cannon . | . . . . Ballistic Gun 11 | 2 . 2 7 Ballistic Cannon . | . . . . Launcher 1 | . . . 1 Special Weapon . | . . . . Impact Weapon 1 | . . . 1 Slashing Weapon 4 | . . . 4 Piercing Weapon . | . . . . Special Melee Weapon . | . . . . Unidentified Prototypes . | . . . . Parts Lost 6 | . . . 6 Power 1 | . . . 1 Propulsion 2 | . . . 2 Utility 1 | . . . 1 Weapon 2 | . . . 2 Highest Loss Streak 2 | . . . 2 To Critical Strikes . | . . . . Average Slot Usage (%) 96 | . 86 100 96 Engine 13 | . 14 14 12 Treads 27 | . 28 28 26 Storage 14 | . 14 14 14 Protection 11 | . . 13 14 Ballistic Gun 24 | . 28 28 20 Slashing Weapon 2 | . . . 4 Naked Turns . | . . . . Heaviest Build 51 | 12 48 50 51 Greatest Support 40 | 40 40 40 40 Greatest Overweight (x) 2 | . 1 1 2 Average Overweight (x) . | . . 1 1 Largest Inventory Capacity 20 | 8 20 20 20 Average Capacity 19 | 6 17 20 20 Most Carried 20 | 2 5 15 20 Average Carried 12 | . 2 12 17 Final Capacity 20 | 8 20 20 20 Final Carried 17 | 2 5 15 17 Class Distribution -------------------- 100% | Mutant Dominant Class ---------------- Mutant | -10/Materials Mutant | -10/Mines Mutant | -10/Subcaves Resources | -11 -10 -10 -10 ----------- Run | Jun Mat Min Sub Matter Collected 786 | 204 221 79 282 Remotely . | . . . . Salvage Created 743 | 9 230 203 301 Parts 58 | 3 15 9 31 Haulers Intercepted . | . . . . Recyclers Shooed . | . . . . Parts Field Recycled . | . . . . Retrieved Matter . | . . . . Parts Self-Destructed 15 | . . . 15 Prevented . | . . . . Kills | -11 -10 -10 -10 ------- Run | Jun Mat Min Sub Combat Hostiles Destroyed 20 | . 7 2 11 Guns 18 | . 7 2 9 AOE 2 | . . . 2 Classes Destroyed 7 | 1 2 2 2 Tunneler 1 | 1 . . . Recycler 1 | . . 1 . Swarmer 7 | . 3 . 4 Grunt 4 | . 4 . . Sentry 2 | . . 2 . Artisan 1 | . . . 1 Subdweller 7 | . . . 7 Best Kill Streak 5 | 1 2 3 5 Combat Bots Only 5 | . 2 2 5 Max Kills in Single Turn 1 | 1 1 1 1 Gunslinging . | . . . . Exploded 1 | . . . 1 Melee . | . . . . Uniques/NPCs Destroyed . | . . . . Combat | -11 -10 -10 -10 -------- Run | Jun Mat Min Sub Damage Taken 1152 | . 283 46 823 Core 255 | . 46 . 209 Absorbed by Shields . | . . . . Redirected to Shielding 35 | . . . 35 Core Remaining (%) 100 | 100 . . . Volleys Fired 64 | . 23 6 35 Largest 2 | . 2 2 2 Hottest 46 | . 40 40 46 Shots Fired 121 | . 46 12 63 Gun 115 | . 46 12 57 Cannon . | . . . . Launcher 6 | . . . 6 Special . | . . . . Kinetic 115 | . 46 12 57 Thermal . | . . . . Explosive 6 | . . . 6 Electromagnetic . | . . . . Robot Hit Streak 16 | . 4 6 16 Robot Miss Streak 5 | . 5 1 3 Penetration Max . | . . . . Secondary Targets . | . . . . Shots Hit Robots 82 | . 25 9 48 Core Hits 36 | . 13 5 18 Critical Kills 1 | . . . 1 Critical Parts Destroyed 1 | . 1 . . Critical Strikes 2 | . 1 . 1 Destroy 2 | . 1 . 1 Melee Attacks 18 | . . . 18 Impact 2 | . . . 2 Slashing 16 | . . . 16 Piercing . | . . . . Sneak Attacks 2 | . . . 2 Combat Hostiles . | . . . . Follow-up Attacks . | . . . . Damage Inflicted 1288 | 5 316 118 849 Guns 794 | . 316 113 365 Cannons . | . . . . Explosions 422 | . . . 422 Melee 62 | . . . 62 Ramming 10 | 5 . 5 . Kinetic 794 | . 316 113 365 Thermal . | . . . . Explosive 422 | . . . 422 Electromagnetic . | . . . . Impact . | . . . . Slashing 62 | . . . 62 Piercing . | . . . . Highest Corruption . | . . . . Average Corruption . | . . . . Corruption Purged . | . . . . Corruption Blocked . | . . . . Overload Shots . | . . . . Overflow Damage 11 | . . . 11 Projectiles . | . . . . Explosions 11 | . . . 11 Melee . | . . . . Knockbacks 1 | 1 . . . Impact 1 | 1 . . . Kinetic . | . . . . Secondary . | . . . . Self-Inflicted Damage . | . . . . Shots . | . . . . Rammed 2 | . . 2 . Targets Rammed 3 | 1 . 2 . Kicked . | . . . . Crushed 1 | 1 . . . Highest Temperature 273 | . 2 2 273 Average Temperature 98 | . 2 2 162 Received Heat Transfer 434 | . 78 18 338 Siege Activations . | . . . . Robots Corrupted . | . . . . Combat Hostiles . | . . . . Parts Fried . | . . . . Impact Corruptions . | . . . . Robots Melted . | . . . . Combat Hostiles . | . . . . Parts Melted . | . . . . Heat Transferred . | . . . . Parts Sabotaged . | . . . . Parts Stolen . | . . . . Parts Stripped . | . . . . Power Chain Reactions . | . . . . Missiles Intercepted . | . . . . Alert | -11 -10 -10 -10 ------- Run | Jun Mat Min Sub Peak Influence 108 | 5 108 57 . Initial 31 | . 3 31 . Average 23 | . 53 12 . Maximum Alert Level . | . . . . Low Security (%) 100 | 100 100 100 . Level 1 . | . . . . Level 2 . | . . . . Level 3 . | . . . . Level 4 . | . . . . Level 5 . | . . . . High Security . | . . . . Max Security . | . . . . Squads Dispatched . | . . . . Investigation . | . . . . Extermination . | . . . . Reinforcement . | . . . . Assault . | . . . . Garrison . | . . . . Intercept . | . . . . Searches Triggered . | . . . . Construction Impeded . | . . . . Haulers Reinforced . | . . . . Active Scanning Responses . | . . . . Cargo Convoy Interrupts . | . . . . Stealth | -11 -10 -10 -10 --------- Run | Jun Mat Min Sub Distress Signals . | . . . . Communications Jammed . | . . . . Distress Signals . | . . . . Times Spotted 26 | . 8 2 16 Peak Tracking Total 5 | . 2 2 5 Tactical Retreats 2 | . 1 . 1 Traps | -11 -10 -10 -10 ------- Run | Jun Mat Min Sub Traps Triggered . | . . . . Indirectly . | . . . . Trap Hack Attempts . | . . . . Triggered . | . . . . Disarmed . | . . . . Reprogrammed . | . . . . Reused . | . . . . Traps Extracted . | . . . . Installed . | . . . . Triggered . | . . . . Machines | -11 -10 -10 -10 ---------- Run | Jun Mat Min Sub Machines Disabled . | . . . . Max in Single Turn . | . . . . Machines Repaired . | . . . . Machines Sabotaged . | . . . . Overloaded Fab Kills . | . . . . Hacking | -11 -10 -10 -10 --------- Run | Jun Mat Min Sub Machines Accessed 3 | . 3 . . Terminals 3 | . 3 . . Fabricators . | . . . . Repair Stations . | . . . . Recycling Units . | . . . . Scanalyzers . | . . . . Garrison Access . | . . . . Total Hacks 5 | . 5 . . Successful 2 | . 2 . . Failed 3 | . 3 . . Catastrophic 1 | . 1 . . Database Lockouts . | . . . . Manual 5 | . 5 . . Terminals 5 | . 5 . . Fabricators . | . . . . Repair Stations . | . . . . Recycling Units . | . . . . Scanalyzers . | . . . . Garrison Access . | . . . . Terminal Hacks 2 | . 2 . . Robot Analysis 2 | . 2 . . Fabricator Hacks . | . . . . Repair Station Hacks . | . . . . Recycling Unit Hacks . | . . . . Scanalyzer . | . . . . Garrison Access Hacks . | . . . . Unauthorized Hacks . | . . . . Terminals . | . . . . Fabricators . | . . . . Repair Stations . | . . . . Recycling Units . | . . . . Scanalyzers . | . . . . Garrison Access . | . . . . Data Cores Recovered . | . . . . Used . | . . . . Hacking Detections 3 | . 3 . . Full Trace Events . | . . . . Feedback Events . | . . . . Feedback Blocked . | . . . . Robot Schematics Acquired . | . . . . Robots Built . | . . . . Authchips . | . . . . Time . | . . . . Total Robot Build Rating . | . . . . Part Schematics Acquired . | . . . . Parts Built . | . . . . Authchips . | . . . . Time . | . . . . Total Part Build Rating . | . . . . Parts Repaired . | . . . . Time . | . . . . Parts Recycled . | . . . . Recycled Matter . | . . . . Retrieved Matter . | . . . . Retrieved Components . | . . . . Parts Scanalyzed . | . . . . Part Schematics Acquired . | . . . . Parts Damaged . | . . . . Bothacking | -11 -10 -10 -10 ------------ Run | Jun Mat Min Sub Used RIF Installer . | . . . . Robots Hacked . | . . . . Non-combat . | . . . . Combat . | . . . . Robot Hacks Applied . | . . . . Relay Couplers Released . | . . . . Fabnet Peak Effective % . | . . . . Robots Rewired . | . . . . Allies Hacked . | . . . . Hacks Repelled . | . . . . Allies | -11 -10 -10 -10 -------- Run | Jun Mat Min Sub Total Allies 4 | . . 4 . Largest Group 3 | . . 3 3 Highest-Rated Group 40 | . . 40 40 Highest-Rated Ally 31 | . . 31 16 Total Orders . | . . . . Ally Attacks 35 | . . 3 32 Total Damage 327 | . . 20 307 Kills 2 | . . . 2 Allies Corrupted . | . . . . Allies Melted . | . . . . Intel | -11 -10 -10 -10 ------- Run | Jun Mat Min Sub Robot Analysis Total 2 | . 2 . . Derelict Logs Recovered 1 | . . 1 . Drone Launches . | . . . . Drone Recoveries . | . . . . Exploration | -11 -10 -10 -10 ------------- Run | Jun Mat Min Sub Turns Passed 3261 | 70 545 1268 1378 Spaces Moved 1244 | 40 210 509 485 Core 5 | 5 . . . Treads 1239 | 35 210 509 485 Legs . | . . . . Wheels . | . . . . Hover . | . . . . Flight . | . . . . Fastest Speed 50 | 50 160 240 240 Average Speed 235 | 146 216 240 245 Slowest Speed 320 | 160 240 240 320 Overloaded Moves . | . . . . Propulsion Burnouts . | . . . . Robots Hopped . | . . . . Cave-ins Triggered . | . . . . Exploration Rate (%) 43 | 4 34 95 39 Regions Visited 3 Branch Regions 2 Pre-discovered Areas 1 | . . 1 . Known Exits Taken . | . . . . Unknown Exits Taken 3 | 1 1 1 . Scrap Searched 5 | . . 1 4 Spaces Dug . | . . . . Terrain Destroyed 10 | . . . 10 Melee . | . . . . Projectile . | . . . . AOE 10 | . . . 10 Terrain Rammed . | . . . . Walls Destroyed . | . . . . Machines Disabled . | . . . . Actions | -11 -10 -10 -10 --------- Run | Jun Mat Min Sub Total 1427 | 48 255 541 583 Wait 50 | . 13 13 24 Move 1241 | 39 209 508 485 Hop . | . . . . Pick Up 17 | 2 3 6 6 Fast Attach 11 | 6 3 2 . Attach 3 | . . . 3 Detach 4 | . 2 2 . Swap 13 | . . 2 11 Drop 3 | . 2 . 1 Fire 64 | . 23 6 35 Melee 18 | . . . 18 Ram . | . . . . Kick . | . . . . Crush 3 | 1 . 2 . Escape Stasis . | . . . . Rewire . | . . . . Trap . | . . . . Miscellaneous . | . . . . Route ------- -11/Junkyard -10/Materials -10/Mines (discovered 3 exits: [*Mat x2] / [*Sub]) -10/Subcaves (discovered 2 exits: [*Mat] / [*Rec]) History --------- Turn | Location | Event 5 | -11/Junkyard | Discovered new exit (range 14) 71 | -11/Junkyard | Entered Materials 310 | -10/Materials | Build established: Mutant 326 | -10/Materials | Discovered new exit (range 7) 616 | -10/Materials | Entered Mines 746 | -10/Mines | Received a Mining Laser from a helpful Derelict 1062 | -10/Mines | Assisted by bots powering up and referring to "LRC-V3" 1157 | -10/Mines | Received a Rocket Launcher from a helpful Derelict 1444 | -10/Mines | Discovered new exit (range 11) 1555 | -10/Mines | Deemed a non-threat by the Exiles lab entrance 1593 | -10/Mines | Learned location of Zion (-6) 1595 | -10/Mines | Discovered new exit (range 6) 1870 | -10/Mines | Discovered new exit (range 6) 1884 | -10/Mines | Entered Subcaves 1884 | -10/Subcaves | Accompanied by 3 allies 2540 | -10/Subcaves | Discovered new exit (range 9) 2606 | -10/Subcaves | Shifting Twisted Machinery released Flamer 2629 | -10/Subcaves | Shifting Twisted Machinery released Shrapnel Trap 2660 | -10/Subcaves | Discovered new exit (range 10) 2869 | -10/Subcaves | A swath of the cavern ceiling suddenly collapsed 3211 | -10/Subcaves | Core integrity fell below 50% 3255 | -10/Subcaves | Core integrity fell below 20% 3262 | -10/Subcaves | Destroyed by NJ-HK5(R) with Subdweller Machine Gun Last Messages --------------- 02804_ Hvy. Assault Rifle destroyed. 02805_ 78-CPD(R) destroyed. 02808_ The unstable cave ceiling collapses. A swath of the cavern ceiling suddenly collapses. 03040_ W4-Z9P(u) tweaks Twisted Machinery. 03073_ Lgt. Treads destroyed. 03073_ Critical hit (Meltdown: +290). 03077_ W7-S14(R) destroyed. 03082_ Acquired 31 matter. 03083_ W4-Z9P(u) tweaks Twisted Machinery. 03109_ Lgt. Treads destroyed. 03109_ Lgt. Ion Engine destroyed. 03113_ Q4-0CS(R) destroyed. 03208_ NR-YAM(R): "RAGEQUIT!" 03214_ NR-YAM(R) destroyed. 03220_ Acquired 44 matter. 03226_ Acquired Sub. Machine Gun. 03235_ NJ-HK5(R): "SUB#$%&!" 03252_ Assault Rifle destroyed. 03260_ Core Shielding destroyed. Map ----- +----------------------------------------------------+ | ?????????????????????????????????????????????????? | | ?????????????????????????????????????????????????? | | ?????????????????????????????????????????????????? | | ?????????????????????????????????????????????????? | | ?????????????????????????????????????????????????? | | ?????????????????????????????????????????????????? | | ?????????????????????????????????????????????????? | | ?????????????????????????????????????????????????? | | ?????????????????????????????????????????????????? | | ?????????????????????????????????????????????????? | | ?????????????????????????????????????????????????? | | ?????????????????????????????????????????????????? | | ?????????????????????????????????????????????????? | | ?????????????????????????????????????????????????? | | ?????????????????????????????????????????????????? | | ?????????????????????????????????????????????????? | | ???????????????????????????<#????????????????????? | | ??????????????????????????<<